bitfinex/quotes_ETHUSD_20220220
["timestamp","ask_amount","ask_price","bid_price","bid_amount"]
[1645395159334,4.83483041,2611.6,2611.5,0.76563063]
[1645395159533,1.33483041,2611.6,2611.5,0.76563063]
[1645395160631,0.41453932,2611.7,2611.5,0.76563063]
[1645395160836,1.91603,2612.0,2611.5,0.76563063]
[1645395161032,0.95797,2611.9,2611.5,0.76563063]
[1645395161233,0.4496,2612.1,2611.5,0.76563063]
[1645395161431,0.25,2612.2,2611.5,0.76563063]
[1645395161639,1.03735232,2612.0,2611.6,0.00140669]
[1645395162235,2.95342232,2612.0,2611.6,0.00140669]
[1645395162432,2.95342232,2612.0,2611.5,0.76563063]
[1645395162433,1.03735232,2612.0,2611.5,0.76563063]
[1645395162899,1.63735232,2612.0,2611.7,0.00131875]
[1645395163397,1.33735232,2612.0,2611.7,0.00131875]
[1645395163688,1.33735232,2612.0,2611.5,0.76563063]
[1645395163885,1.33735232,2612.0,2611.7,0.00131873]
[1645395164288,1.63735232,2612.0,2611.7,0.00131873]
[1645395164887,1.63735232,2612.0,2611.5,0.79345809]
[1645395165088,1.63735232,2612.0,2611.7,0.00131873]
[1645395165490,1.33735232,2612.0,2611.7,0.00131873]
[1645395165688,3.55327232,2612.0,2611.7,0.00131873]
[1645395166096,3.55327232,2612.0,2611.5,0.79345809]
[1645395166290,0.91079963,2611.6,2611.5,0.79345809]
[1645395167730,2.51592,2612.0,2611.5,0.79345809]
[1645395167932,3.8,2611.6,2611.5,0.79345809]
[1645395169330,3.8,2611.6,2611.5,0.76563063]
[1645395171991,4.1,2611.6,2611.5,0.76563063]
[1645395172991,20.5,2611.5,2611.0,0.00462885]
[1645395173195,3.5,2611.4,2609.9,3.0736]
[1645395173390,0.553,2611.3,2609.8,5.5395]
[1645395173590,0.553,2611.3,2609.9,1.62767509]
[1645395174233,1.3423926,2610.9,2610.2,1.09225748]
[1645395174434,0.95846,2610.8,2610.2,1.09225748]
[1645395174936,0.95846,2610.8,2609.7,1.1915]
[1645395174937,1.25846,2610.8,2609.7,1.1915]
[1645395175135,1.25846,2610.8,2609.8,1.57766754]
[1645395175335,1.25846,2610.8,2609.8,2.57766754]
[1645395175541,1.25846,2610.8,2609.8,0.9]
[1645395175735,0.95846,2610.6,2609.6,0.1915]
[1645395175939,0.94809247,2610.2,2609.6,0.88236104]
[1645395176136,1.25846,2610.6,2610.2,0.82761132]
[1645395176343,0.95846,2610.6,2610.2,0.82761132]
[1645395176536,1.25846,2610.6,2610.2,0.82761132]
[1645395177137,1.25846,2610.6,2610.3,0.00140453]
[1645395177438,0.90154811,2610.5,2610.3,0.00140453]
[1645395177638,0.42345773,2610.6,2610.3,0.00140453]
[1645395177904,1.04936707,2610.5,2610.3,0.00140453]
[1645395178091,1.04936707,2610.5,2610.2,0.82761132]
[1645395178991,1.04936707,2610.5,2610.2,1.39052433]
[1645395179188,1.64936707,2610.5,2610.2,1.39052433]
[1645395179588,1.64936707,2610.5,2610.2,0.82761132]
[1645395179792,3.20236707,2610.5,2610.2,0.82761132]
[1645395180591,7.00236707,2610.5,2610.2,0.82761132]
[1645395180787,1.91722,2610.4,2610.2,0.82761132]
[1645395181187,0.3,2610.3,2610.2,0.82761132]
[1645395181389,0.6,2610.3,2610.2,0.82761132]
[1645395181834,1.6,2610.3,2610.2,0.82761132]
[1645395182635,2.153,2610.3,2610.2,0.82108749]
[1645395182834,1.153,2610.3,2610.2,0.82108749]
[1645395183036,20.5,2610.1,2609.0,0.1915]
[1645395183239,5.9587,2609.9,2609.7,0.00561928]
[1645395183439,5.9587,2609.9,2608.2,0.00236872]
[1645395183440,0.553,2609.8,2608.2,0.19386872]
[1645395183840,0.4496,2609.5,2608.3,0.1915]
[1645395184037,0.25,2609.8,2608.5,5.0]
[1645395184243,1.20871,2609.8,2608.6,0.1915]
[1645395184438,1.50871,2609.8,2608.3,0.1915]
[1645395184637,1.04509609,2609.6,2609.1,0.98094539]
[1645395184839,1.34509609,2609.6,2609.1,0.98094539]
[1645395185498,0.25,2609.8,2609.1,0.98094539]
[1645395185701,0.25,2609.8,2609.1,12.75094539]
[1645395185901,0.553,2610.2,2609.2,0.1915]
[1645395186100,3.8,2610.5,2609.2,0.1915]
[1645395186295,3.5,2610.4,2609.2,0.1915]
[1645395186595,3.5,2610.4,2609.8,1.10264134]
[1645395186596,1.03776253,2610.3,2609.8,1.10264134]
[1645395186801,2.95502253,2610.3,2609.8,1.10264134]
[1645395187196,3.25502253,2610.3,2609.8,1.10264134]
[1645395187397,0.3,2610.2,2609.8,1.10264134]
[1645395187600,0.3,2610.3,2609.8,1.10264134]
[1645395187805,0.25,2610.6,2609.8,13.17264134]
[1645395188003,0.4496,2611.0,2610.5,11.77]
[1645395188202,0.4496,2611.0,2610.5,0.04955999]
[1645395188398,0.25,2611.6,2610.5,1.04955999]
[1645395188599,5.3127,2612.5,2610.6,1.05052289]
[1645395188600,3.20710316,2612.4,2610.6,1.05052289]
[1645395188799,3.20710316,2612.4,2610.8,0.95787]
[1645395188800,0.3032,2611.9,2610.8,0.95787]
[1645395189002,0.3032,2611.9,2610.7,0.2081]
[1645395189240,0.3032,2611.9,2610.8,0.3]
[1645395189445,0.3032,2611.9,2610.6,1.05052289]
[1645395189640,1.18030695,2611.7,2611.2,0.90678246]
[1645395190042,1.78030695,2611.7,2610.5,16.51085999]
[1645395190244,1.78030695,2611.7,2610.6,11.77]
[1645395190245,2.73832695,2611.7,2610.6,11.77]
[1645395190643,1.78030695,2611.7,2610.7,1.0]
[1645395190843,1.78030695,2611.7,2610.7,12.77]
[1645395191242,1.78030695,2611.7,2611.0,0.83974214]
[1645395191445,5.58030695,2611.7,2611.0,0.83974214]
[1645395192886,4.1,2611.7,2611.0,0.83974214]
[1645395193683,4.05,2611.7,2611.0,0.83974214]
[1645395193882,4.0,2611.7,2611.0,0.83974214]
[1645395194081,4.85622816,2611.7,2611.0,0.83974214]
[1645395194286,4.85622816,2611.7,2610.7,0.1913]
[1645395194687,5.15622816,2611.7,2610.7,0.1913]
[1645395195084,0.95811,2611.5,2610.6,0.1913]
[1645395195391,3.8,2611.7,2610.6,11.9613]
[1645395195592,3.8,2611.7,2610.8,12.1557]
[1645395195792,3.8,2611.7,2611.5,11.77]
[1645395195987,0.25,2612.1,2611.5,11.77]
[1645395196185,0.3032,2612.8,2611.8,11.77]
[1645395196384,0.3032,2612.8,2612.3,1.06638305]
[1645395196385,1.46532335,2612.8,2612.3,1.06638305]
[1645395196638,1.26085,2612.8,2612.3,1.06638305]
[1645395197035,0.3032,2612.8,2612.3,1.06638305]
[1645395197251,0.3032,2612.8,2611.6,1.553]
[1645395197438,0.3032,2612.8,2611.6,1.0]
[1645395197637,0.3032,2612.8,2611.3,5.053]
[1645395197836,0.3032,2612.8,2611.3,1.553]
[1645395198038,0.3032,2612.8,2611.3,5.053]
[1645395198239,0.94898991,2612.2,2611.7,0.99367758]
[1645395198439,0.6032,2612.8,2611.7,0.99367758]
[1645395198639,2.56086,2612.8,2611.7,0.99367758]
[1645395198840,1.56086,2612.8,2611.7,0.99367758]
[1645395199339,1.25766,2612.8,2611.7,0.99367758]
[1645395199542,1.91557,2612.6,2612.1,1.02697543]
[1645395199746,1.25769,2612.8,2612.1,1.02697543]
[1645395200141,0.95769,2612.8,2612.1,1.02697543]
[1645395200390,0.95769,2612.8,2612.2,3.5]
[1645395200591,0.25,2613.4,2612.2,3.5]
[1645395200592,1.2603331,2613.4,2612.3,11.77]
[1645395200786,1.2603331,2613.4,2612.3,12.77]
[1645395200787,1.20744,2613.4,2612.3,12.77]
[1645395201589,1.20744,2613.4,2612.5,11.77]
[1645395201590,0.25,2613.4,2612.5,11.77]
[1645395201888,1.19488747,2613.8,2613.3,1.03322389]
[1645395202486,1.91455,2614.0,2613.3,1.03322389]
[1645395202696,3.8,2613.4,2613.3,1.03322389]
[1645395204939,3.75,2613.4,2613.3,1.03322389]
[1645395208876,3.75,2613.4,2613.3,2.03322389]
[1645395210378,3.75,2613.4,2613.3,1.03322389]
[1645395211635,3.75,2613.4,2612.6,0.27388178]
[1645395211838,3.75,2613.4,2612.6,1.27388178]
[1645395212236,3.75,2613.4,2612.6,0.27388178]
[1645395212837,3.75,2613.4,2613.0,0.92445175]
[1645395213438,0.95745,2613.3,2613.0,0.92445175]
[1645395215891,3.75,2613.4,2613.0,0.92445175]
[1645395216083,4.05,2613.4,2613.0,0.92445175]
[1645395216883,4.05,2613.4,2613.0,1.50620973]
[1645395217487,5.00742,2613.4,2613.0,0.58175798]
[1645395218085,1.91506,2613.3,2613.0,0.58175798]
[1645395218485,0.3,2613.2,2613.0,0.58175798]
[1645395218891,1.14038853,2613.2,2613.0,0.58175798]
[1645395221637,2.09790853,2613.2,2613.0,0.58175798]
[1645395224287,2.09790853,2613.2,2612.1,1.0124124]
[1645395224288,2.44038853,2613.2,2612.1,1.0124124]
[1645395224485,2.44038853,2613.2,2611.7,1.0]
[1645395224486,1.13761654,2612.5,2611.7,1.1913]
[1645395224685,1.13761654,2612.5,2611.4,0.1913]
[1645395224882,1.43761654,2612.5,2611.4,0.1913]
[1645395225589,1.00093706,2612.1,2611.6,1.02252042]
[1645395225984,1.91584,2612.3,2611.6,1.02252042]
[1645395226634,0.95792,2612.1,2611.6,1.02252042]
[1645395228831,0.95792,2612.1,2611.6,1.32099896]
[1645395232194,1.15191618,2612.2,2611.6,1.32099896]
[1645395233196,0.95793,2612.4,2611.6,1.32099896]
[1645395233402,0.95789,2612.8,2611.6,1.32099896]
[1645395233403,0.95781,2612.6,2611.6,1.32099896]
[1645395233900,3.67653,2613.0,2611.6,13.09099896]
[1645395234132,0.3,2612.9,2611.6,13.09099896]
[1645395234334,0.87267918,2612.8,2612.3,0.9175916]
[1645395236341,0.25,2613.0,2612.3,0.9175916]
[1645395236643,5.10824229,2613.5,2612.3,1.2175916]
[1645395236644,4.9073,2613.5,2612.3,1.2175916]
[1645395236835,2.9338,2613.6,2612.3,0.9175916]
[1645395237034,2.9338,2613.6,2612.3,1.2175916]
[1645395237237,1.19223396,2613.4,2612.9,1.0107033]
[1645395238093,1.49223396,2613.4,2612.9,1.0107033]
[1645395238494,5.29223396,2613.4,2612.9,1.0107033]
[1645395238699,5.29223396,2613.4,2612.1,15.57]
[1645395238893,5.29223396,2613.4,2612.1,12.07]
[1645395239697,5.29223396,2613.4,2612.6,0.95344922]
[1645395240301,5.29223396,2613.4,2613.0,1.08129747]
[1645395240302,3.8,2613.4,2613.0,1.08129747]
[1645395240799,3.8,2613.4,2613.0,1.38129747]
[1645395242848,3.7,2613.4,2613.0,1.38129747]
[1645395243046,3.7,2613.4,2613.0,1.08129747]
[1645395245512,3.7,2613.4,2612.4,15.7613]
[1645395245714,3.7,2613.4,2612.4,12.2613]
[1645395245910,3.7,2613.4,2612.5,1.0]
[1645395246311,1.17381253,2613.2,2612.7,1.09374688]
[1645395246712,3.7,2613.4,2612.7,1.39374688]
[1645395247712,5.04614725,2613.4,2612.7,1.39374688]
[1645395248113,5.04614725,2613.4,2612.7,0.3]
[1645395248315,6.00368725,2613.4,2612.4,0.1913]
[1645395250138,6.00368725,2613.4,2612.6,0.93772061]
[1645395250738,1.0,2613.3,2612.6,0.93772061]
[1645395253388,1.15349657,2613.0,2612.6,0.93772061]
[1645395253589,1.15349657,2613.0,2612.6,0.58540645]
[1645395253788,1.45349657,2613.0,2612.6,0.58540645]
[1645395254387,0.3,2613.0,2612.6,0.58540645]
[1645395254587,3.7,2613.4,2612.6,0.58540645]
[1645395254787,5.12186046,2613.4,2612.6,0.58540645]
[1645395254988,5.42186046,2613.4,2612.6,0.58540645]
[1645395255789,1.11998043,2613.0,2612.6,0.58540645]
[1645395256187,1.41998043,2613.0,2612.6,0.58540645]
[1645395258045,0.3,2613.0,2612.6,0.58540645]
[1645395258242,3.7,2613.4,2612.6,0.58540645]
[1645395258440,4.0,2613.4,2612.6,0.58540645]
[1645395258842,4.95753,2613.4,2612.6,0.58540645]
[1645395259347,1.17243065,2613.1,2612.6,0.58540645]
[1645395259645,1.47243065,2613.1,2612.6,0.58540645]
[1645395260996,1.42243065,2613.1,2612.6,0.58540645]
[1645395261785,0.25,2613.1,2612.6,0.58540645]
[1645395262187,4.95753,2613.4,2612.6,0.58540645]
[1645395263087,1.09403413,2613.2,2612.6,0.58540645]
[1645395263287,1.39403413,2613.2,2612.6,0.58540645]
[1645395264442,2.35165413,2613.2,2612.6,0.58540645]
[1645395264649,3.77351459,2613.2,2612.0,0.1913]
[1645395264941,2.42186046,2613.1,2612.0,0.77336384]
[1645395265242,2.42186046,2613.1,2612.0,0.58206384]
[1645395265439,1.14298989,2612.7,2612.2,0.93631926]
[1645395265841,1.44298989,2612.7,2612.2,0.93631926]
[1645395266042,1.44298989,2612.7,2611.9,0.4913]
[1645395266443,1.44298989,2612.7,2611.6,1.1913]
[1645395266741,1.44298989,2612.7,2611.8,0.3]
[1645395266941,1.44298989,2612.7,2612.1,0.87289521]
[1645395267343,1.44298989,2612.7,2612.1,1.17289521]
[1645395267543,1.44298989,2612.7,2612.1,0.87289521]
[1645395269293,1.44298989,2612.7,2611.5,1.4913]
[1645395269494,1.44298989,2612.7,2611.6,1.62689451]
[1645395269893,0.95783,2612.6,2611.6,1.62689451]
[1645395270896,0.91684555,2612.3,2611.8,0.88835302]
[1645395271101,0.3,2612.3,2611.8,1.18835302]
[1645395271298,0.95783,2612.6,2611.8,1.18835302]
[1645395271647,4.75783,2612.6,2611.5,0.4913]
[1645395271845,4.75783,2612.6,2611.5,0.1913]
[1645395272747,4.75783,2612.6,2612.0,1.43363104]
[1645395272946,3.8,2612.6,2612.0,1.43363104]
[1645395273147,3.8,2612.6,2612.0,1.42057077]
[1645395273945,1.17645691,2612.5,2612.0,1.13363104]
[1645395275595,4.1,2612.6,2612.0,1.69945425]
[1645395276199,4.1,2612.6,2612.0,1.99945425]
[1645395276598,1.1925704,2612.4,2612.0,1.99945425]
[1645395276798,1.4925704,2612.4,2612.0,1.69945425]
[1645395277396,2.4504704,2612.4,2612.0,0.56582321]
[1645395280042,1.4925704,2612.4,2612.0,0.56582321]
[1645395294536,1.4925704,2612.4,2612.0,0.56432446]
[1645395299288,2.4504504,2612.4,2612.0,0.56432446]
[1645395299889,3.5,2612.3,2612.0,0.56432446]
[1645395300087,2.4504504,2612.4,2612.0,0.56432446]
[1645395300889,3.4084204,2612.4,2612.0,0.56432446]
[1645395301094,3.5,2612.3,2612.0,0.56432446]
[1645395301289,3.4084204,2612.4,2612.0,0.56432446]
[1645395302741,3.5,2612.3,2612.0,0.56432446]
[1645395303748,4.053,2612.3,2612.0,0.56432446]
[1645395304946,0.553,2612.3,2612.0,0.56432446]
[1645395305145,1.25788,2612.4,2612.0,0.56432446]
[1645395306200,2.27684112,2612.4,2612.0,0.56432446]
[1645395308203,1.42186046,2612.3,2612.0,0.56432446]
[1645395309141,1.07446828,2612.2,2612.0,0.56432446]
[1645395309342,1.37446828,2612.2,2612.0,0.56432446]
[1645395309541,2.79632874,2612.2,2612.0,0.56432446]
[1645395311547,1.37446828,2612.2,2612.0,0.56432446]
[1645395311745,2.40933771,2612.9,2612.0,1.60488247]
[1645395311948,0.28624087,2613.3,2612.4,0.0120086]
[1645395312148,0.28624087,2613.3,2612.1,3.5]
[1645395312149,0.3032,2613.6,2612.8,0.96942055]
[1645395312349,0.00533588,2614.0,2613.4,0.01249515]
[1645395312545,0.00533588,2614.1,2613.4,0.01249515]
[1645395312747,0.25315175,2614.5,2613.4,11.78249515]
[1645395312748,0.00533588,2614.2,2613.4,11.78249515]
[1645395313003,0.00533588,2614.4,2613.8,1.15236145]
[1645395313201,0.00533588,2614.4,2613.9,0.553]
[1645395313801,0.00315347,2614.5,2613.9,1.50982]
[1645395314002,1.0743526,2614.8,2613.9,2.46663]
[1645395314207,0.00533588,2614.7,2614.2,0.84397096]
[1645395314404,1.07968848,2614.8,2614.1,1.91356]
[1645395314603,1.07968848,2614.8,2614.1,2.21356]
[1645395314604,1.37968848,2614.8,2614.1,2.21356]
[1645395315408,1.07968848,2614.8,2614.2,1.13957874]
[1645395315804,1.07968848,2614.8,2614.3,0.95678]
[1645395316009,0.00533588,2614.8,2614.3,0.95678]
[1645395316207,0.25533588,2615.0,2614.4,0.3]
[1645395316407,0.00533588,2615.0,2614.4,0.3]
[1645395316645,0.00341314,2614.7,2614.4,0.3]
[1645395317647,1.30458156,2614.9,2614.4,0.3]
[1645395317947,0.00341314,2614.7,2614.3,0.95678]
[1645395318150,0.00341314,2614.7,2613.9,0.95709]
[1645395318450,3.80341314,2614.7,2613.9,0.95709]
[1645395318747,0.00533588,2614.6,2613.9,0.95709]
[1645395318946,0.00341304,2614.5,2613.9,0.95709]
[1645395319150,0.86818338,2614.4,2613.9,0.95709]
[1645395319350,1.16818338,2614.4,2613.9,0.95709]
[1645395320791,1.11818338,2614.4,2613.9,1.25709]
[1645395323794,1.11818338,2614.4,2613.9,0.95709]
[1645395324149,1.11818338,2614.4,2613.6,3.45811361]
[1645395324349,1.11818338,2614.4,2613.6,0.58774361]
[1645395324350,0.00533588,2614.3,2613.6,0.58774361]
[1645395326246,0.92188621,2613.9,2613.6,0.58774361]
[1645395326656,0.92188621,2613.9,2613.5,1.25719]
[1645395326657,1.22188621,2613.9,2613.5,1.25719]
[1645395326848,0.3,2613.9,2613.5,1.25719]
[1645395327050,0.00874851,2614.5,2613.5,1.25719]
[1645395327255,0.30533588,2614.5,2613.5,1.25719]
[1645395327450,0.95731,2614.2,2613.3,0.05039951]
[1645395327649,0.00533588,2614.1,2613.3,0.05039951]
[1645395328500,0.8680421,2613.9,2613.3,0.05039951]
[1645395328706,0.87337798,2613.9,2613.3,0.05039951]
[1645395328904,1.17337798,2613.9,2613.3,0.05039951]
[1645395332450,0.30533588,2613.9,2613.3,1.00762951]
[1645395333457,0.30533588,2613.9,2613.5,1.11098745]
[1645395333649,0.3,2613.9,2613.5,1.11098745]
[1645395334049,0.30533588,2614.2,2613.5,1.11098745]
[1645395334451,0.00533588,2614.2,2613.6,0.95721]
[1645395335059,0.96265588,2614.2,2613.5,1.11098745]
[1645395335506,0.96265588,2614.2,2613.6,3.5]
[1645395335507,0.00533588,2614.2,2613.6,3.5]
[1645395335707,0.00533588,2614.5,2613.5,1.41098745]
[1645395335907,0.00874839,2614.5,2613.6,0.1912]
[1645395336303,0.00874839,2614.5,2613.9,1.03518457]
[1645395336807,0.00533588,2614.5,2613.9,1.03518457]
[1645395337004,0.00341292,2614.5,2613.9,1.03518457]
[1645395338007,0.00533588,2614.6,2614.0,0.95706]
[1645395338203,0.00341292,2614.5,2614.0,0.95706]
[1645395338804,0.30341292,2614.5,2614.0,0.95706]
[1645395339248,0.3,2614.5,2614.0,0.95706]
[1645395339448,0.00341298,2614.5,2614.0,0.95706]
[1645395339653,0.30341298,2614.5,2614.0,0.95706]
[1645395339847,0.00341298,2614.5,2614.0,0.95706]
[1645395340547,3.8,2614.5,2614.0,0.95706]
[1645395340749,4.10341298,2614.5,2614.0,0.95706]
[1645395341549,4.1,2614.5,2614.0,0.95706]
[1645395342988,4.10341657,2614.5,2614.0,0.95564434]
[1645395343590,3.80341657,2614.5,2614.0,0.95564434]
[1645395344088,3.8,2614.5,2614.0,0.95564434]
[1645395344285,3.80344341,2614.5,2614.0,0.95564434]
[1645395344885,4.10344341,2614.5,2614.0,0.95564434]
[1645395345189,4.1,2614.5,2614.0,0.95564434]
[1645395345387,4.10344341,2614.5,2614.0,0.95564434]
[1645395346490,4.1,2614.5,2614.0,0.95564434]
[1645395346747,4.10344341,2614.5,2614.0,0.95564434]
[1645395347550,4.1,2614.5,2613.9,1.91398]
[1645395347748,4.10341053,2614.5,2613.9,1.91398]
[1645395348746,4.1,2614.5,2613.9,1.91398]
[1645395348946,4.10341047,2614.5,2613.9,1.91398]
[1645395349147,0.95800957,2614.2,2613.9,1.91398]
[1645395349648,0.00533588,2614.4,2613.6,0.1912]
[1645395349846,0.30533588,2614.2,2613.6,0.1912]
[1645395350053,0.3,2614.2,2613.6,0.1912]
[1645395350247,0.00533588,2614.2,2613.5,1.14602362]
[1645395350495,0.30533588,2614.4,2613.5,1.14602362]
[1645395350898,0.30533588,2614.4,2613.4,1.91398]
[1645395351094,0.30533588,2614.4,2613.3,1.24699951]
[1645395351396,0.30533588,2614.4,2613.3,0.35039951]
[1645395351695,0.30533588,2614.4,2613.3,0.05039951]
[1645395352095,0.30533588,2614.4,2613.3,1.00756951]
[1645395352297,1.12498293,2614.1,2613.3,1.9804472]
[1645395352497,0.00533588,2614.0,2613.3,1.9804472]
[1645395352696,1.38031881,2614.1,2613.3,1.9804472]
[1645395354637,1.38031881,2614.1,2613.3,1.00756951]
[1645395355843,1.38031881,2614.1,2613.3,1.87282249]
[1645395357043,0.25533588,2614.1,2613.3,1.87282249]
[1645395357244,7.3,2614.5,2613.3,1.87282249]
[1645395357445,7.60341561,2614.5,2613.3,1.87282249]
[1645395358087,1.12543061,2614.2,2613.3,1.87282249]
[1645395358288,1.42543061,2614.2,2613.3,1.87282249]
[1645395361838,1.42543061,2614.2,2613.4,0.3]
[1645395362243,0.3,2614.2,2613.4,0.3]
[1645395362641,7.60341605,2614.5,2613.4,0.3]
[1645395362839,4.10341605,2614.5,2613.4,0.3]
[1645395363238,7.6,2614.5,2613.4,0.3]
[1645395363441,1.03962719,2614.1,2613.4,0.3]
[1645395364041,1.03962719,2614.1,2613.4,0.88318507]
[1645395364343,1.03962719,2614.1,2613.4,1.88318507]
[1645395364842,1.03962719,2614.1,2613.4,0.88318507]
[1645395365042,1.33962719,2614.1,2613.4,0.88318507]
[1645395365241,1.33962719,2614.1,2613.4,0.58318507]
[1645395365700,1.33962719,2614.1,2613.4,0.88318507]
[1645395365903,1.33962719,2614.1,2613.4,0.58318507]
[1645395368505,1.3449052,2614.1,2613.4,0.58318507]
[1645395370137,1.3449052,2614.1,2613.4,0.88318507]
[1645395371838,1.0449052,2614.1,2613.4,0.88318507]
[1645395372885,1.0449052,2614.1,2613.4,0.88194003]
[1645395373288,0.00527801,2614.1,2613.4,0.88194003]
[1645395373489,0.00527801,2614.4,2613.4,0.88194003]
[1645395374288,0.00527801,2614.4,2613.4,0.88318507]
[1645395374488,1.16174454,2614.2,2613.4,0.88318507]
[1645395374689,0.00527801,2614.1,2613.4,0.88318507]
[1645395374890,0.00527801,2614.1,2613.4,0.58318507]
[1645395377753,0.00527801,2614.1,2613.4,0.88318507]
[1645395377953,0.00527801,2614.1,2613.4,0.58318507]
[1645395378854,0.00527801,2614.1,2613.4,0.88318507]
[1645395379259,0.00527801,2614.1,2613.4,0.58318507]
[1645395380391,1.36303063,2614.2,2613.4,0.58318507]
[1645395381002,1.36303063,2614.2,2613.6,1.17175989]
[1645395381393,1.36303063,2614.2,2613.6,0.3]
[1645395381799,1.36303063,2614.2,2613.4,0.88318507]
[1645395381996,1.36303063,2614.2,2613.4,0.58318507]
[1645395382598,1.16174454,2614.2,2613.5,0.93522773]
[1645395382795,1.16174454,2614.2,2613.5,1.23522773]
[1645395384147,1.46174454,2614.2,2613.5,0.3]
[1645395384452,1.46174454,2614.2,2613.4,0.58318507]
[1645395385244,1.46174454,2614.2,2613.4,0.88318507]
[1645395385646,1.18283614,2613.8,2613.4,0.58318507]
[1645395389610,1.449,2614.2,2613.4,0.58318507]
[1645395390808,0.88290261,2614.0,2613.4,0.58318507]
[1645395392243,0.88290261,2614.0,2613.5,1.92615669]
[1645395392439,0.88290261,2614.0,2613.5,1.3]
[1645395392838,0.88290261,2614.0,2613.4,1.88318507]
[1645395393041,0.88290261,2614.0,2613.4,0.58318507]
[1645395393642,0.88290261,2614.0,2613.5,1.626163]
[1645395393843,0.88290261,2614.0,2613.4,0.58318507]
[1645395394644,1.18290261,2614.0,2613.4,0.58318507]
[1645395395499,0.88290261,2614.0,2613.4,0.58318507]
[1645395396005,0.88290261,2614.0,2613.5,1.62615956]
[1645395396404,1.18290261,2614.0,2613.4,0.58318507]
[1645395397405,0.88290261,2614.0,2613.4,0.58318507]
[1645395397600,1.18290261,2614.0,2613.4,0.58318507]
[1645395399003,4.98290261,2614.0,2613.4,0.58318507]
[1645395399246,4.68290261,2614.0,2613.4,0.58318507]
[1645395400051,1.12581541,2613.6,2613.4,0.58318507]
[1645395402903,1.12581541,2613.6,2613.4,0.58197216]
[1645395406941,1.12461303,2613.6,2613.4,0.58197216]
[1645395407848,0.00316726,2614.5,2613.5,13.39605417]
[1645395408049,0.00316726,2614.5,2613.7,16.77]
[1645395408246,0.00316726,2614.5,2614.1,5.0]
[1645395408445,2.43640076,2615.9,2614.2,17.64025417]
[1645395408643,2.43640076,2616.1,2614.4,11.77]
[1645395408845,1.09621482,2615.5,2614.8,1.13181545]
[1645395409046,1.09621482,2615.5,2614.8,1.43181545]
[1645395409942,1.09621482,2615.5,2614.9,0.95655]
[1645395410145,1.09621482,2615.5,2615.0,0.3]
[1645395410408,0.00282892,2615.3,2615.0,0.3]
[1645395411104,4.89621482,2615.5,2615.0,0.3]
[1645395411503,0.00282892,2615.3,2615.0,0.3]
[1645395412007,0.00282892,2615.3,2614.7,1.91306]
[1645395412406,5.19621482,2615.5,2614.7,1.91306]
[1645395412807,0.00324424,2615.1,2614.7,1.91306]
[1645395413011,0.99744957,2615.1,2614.7,1.91306]
[1645395413207,0.99744957,2615.1,2614.8,0.3]
[1645395413606,4.1,2615.5,2614.8,0.3]
[1645395414005,0.0032533,2615.1,2614.8,0.3]
[1645395414451,0.0032533,2615.1,2614.8,1.3]
[1645395414848,0.90281217,2615.3,2614.8,1.3]
[1645395415050,1.02200382,2614.9,2614.8,0.3]
[1645395415249,1.02200382,2614.9,2614.7,0.57414099]
[1645395416352,1.02525714,2614.9,2614.7,0.57414099]
[1645395416755,0.00325332,2614.9,2614.7,0.57414099]
[1645395417156,0.25,2615.7,2614.7,0.57414099]
[1645395417356,0.00349298,2614.9,2614.7,0.57414099]
[1645395418505,1.19149137,2615.0,2614.7,0.57414099]
[1645395418706,0.00349298,2614.9,2614.7,0.57414099]
[1645395418911,1.19149137,2615.0,2614.7,0.57414099]
[1645395418912,1.14498435,2615.0,2614.7,0.57414099]
[1645395419105,0.25,2615.7,2614.7,0.57414099]
[1645395419309,0.25,2615.7,2614.7,1.53077099]
[1645395419704,0.25,2615.7,2614.8,0.3]
[1645395420003,0.98896787,2615.4,2614.8,0.3]
[1645395421014,0.00349293,2615.2,2614.8,0.3]
[1645395422055,4.78896787,2615.4,2614.8,0.3]
[1645395422258,0.00349295,2615.1,2614.8,0.3]
[1645395422556,0.00349295,2615.1,2614.8,0.29345909]
[1645395423258,4.78896787,2615.4,2614.8,0.29345909]
[1645395423463,0.00349296,2615.1,2614.8,0.29345909]
[1645395424464,4.79412939,2615.4,2614.8,0.29345909]
[1645395424660,0.00349296,2615.1,2614.8,0.29345909]
[1645395425700,0.00516132,2615.3,2614.8,0.29345909]
[1645395425900,0.00349296,2615.1,2614.8,0.29345909]
[1645395427799,0.00516132,2615.3,2614.8,0.29345909]
[1645395427800,4.74762215,2615.4,2614.8,0.29345909]
[1645395428205,0.00349296,2615.1,2614.8,0.29345909]
[1645395429002,0.00349296,2615.1,2614.8,1.29345909]
[1645395429253,4.74762215,2615.4,2614.7,0.57414099]
[1645395429254,5.04762215,2615.4,2614.7,0.57414099]
[1645395429454,0.00349276,2615.2,2614.7,0.57414099]
[1645395429653,5.00349276,2615.2,2614.7,0.57414099]
[1645395429951,0.00349276,2615.2,2614.7,0.57414099]
[1645395430151,0.30349276,2615.2,2614.7,0.57414099]
[1645395430351,5.00349276,2615.2,2614.7,0.57414099]
[1645395430550,5.0,2615.2,2614.7,0.57414099]
[1645395430751,0.30349276,2615.2,2614.7,0.57414099]
[1645395431150,5.00349276,2615.2,2614.7,0.57414099]
[1645395431360,5.30349276,2615.2,2614.7,0.57414099]
[1645395431551,5.3,2615.2,2614.7,0.57414099]
[1645395431758,0.3,2615.2,2614.7,0.57414099]
[1645395431953,0.30349276,2615.2,2614.7,0.57414099]
[1645395432151,0.00349276,2615.2,2614.7,0.57414099]
[1645395432751,2.80999,2615.3,2614.7,0.57414099]
[1645395433007,0.00349276,2615.2,2614.7,0.57414099]
[1645395434010,2.80999,2615.3,2614.7,0.57414099]
[1645395434206,0.00349276,2615.2,2614.7,0.57414099]
[1645395435209,2.80999,2615.3,2614.7,0.57414099]
[1645395435411,0.00349276,2615.2,2614.7,0.57414099]
[1645395436515,2.80999,2615.3,2614.7,0.57414099]
[1645395436763,0.00349276,2615.2,2614.7,0.57414099]
[1645395437559,2.80999,2615.3,2614.7,0.57414099]
[1645395437959,0.00349276,2615.2,2614.7,0.57414099]
[1645395438762,1.18640445,2614.8,2614.7,0.57414099]
[1645395438961,0.3,2614.8,2614.7,0.57414099]
[1645395439166,0.00349276,2615.2,2614.7,0.57414099]